bitfinex/quotes_BTCUSD_20250620
["timestamp","ask_amount","ask_price","bid_price","bid_amount"]
[1750383591172,0.23664404,104650.0,104640.0,0.74163187]
[1750383591634,0.23664404,104650.0,104640.0,0.760744]
[1750383592342,0.23664404,104650.0,104640.0,0.76074354]
[1750383594399,0.23664404,104650.0,104640.0,0.74163159]
[1750383595531,0.23664404,104650.0,104640.0,0.75118761]
[1750383595753,0.23664404,104650.0,104640.0,0.75240761]
[1750383595994,0.23664404,104650.0,104640.0,0.76196354]
[1750383596443,0.02641958,104650.0,104640.0,0.76196354]
[1750383596668,0.58657516,104660.0,104650.0,0.21022409]
[1750383596669,0.03247272,104660.0,104650.0,0.21022409]
[1750383596916,3.84734125,104660.0,104650.0,0.58177069]
[1750383597140,3.71037982,104660.0,104650.0,0.59254571]
[1750383597812,3.90147479,104660.0,104650.0,0.57343558]
[1750383598024,3.90147479,104660.0,104650.0,0.57221558]
[1750383598207,3.87860645,104660.0,104650.0,0.57221558]
[1750383598892,3.87860645,104660.0,104650.0,0.58177078]
[1750383599344,3.87860645,104660.0,104650.0,0.21977929]
[1750383599873,3.87860632,104660.0,104650.0,0.21022427]
[1750383600310,4.24059781,104660.0,104650.0,0.21977965]
[1750383602099,3.87860632,104660.0,104650.0,0.22933494]
[1750383602358,4.23166561,104660.0,104650.0,0.21022427]
[1750383604093,4.23166561,104660.0,104650.0,0.2006688]
[1750383604315,4.22211123,104660.0,104650.0,0.2006688]
[1750383604806,4.22211123,104660.0,104650.0,0.21022427]
[1750383605249,4.22211123,104660.0,104650.0,0.2006688]
[1750383605698,4.22211123,104660.0,104650.0,0.21022427]
[1750383605923,4.22211123,104660.0,104650.0,0.21977965]
[1750383606648,4.22211123,104660.0,104650.0,0.22933485]
[1750383606881,3.66902441,104660.0,104650.0,0.27058996]
[1750383607121,3.66902441,104660.0,104650.0,0.27058941]
[1750383607395,3.86967412,104660.0,104650.0,0.26103439]
[1750383607841,3.86967412,104660.0,104650.0,0.25147928]
[1750383608064,3.86967412,104660.0,104650.0,0.22632408]
[1750383608295,3.86011974,104660.0,104650.0,0.2006687]
[1750383608555,3.85056509,104660.0,104650.0,0.2006687]
[1750383608776,3.85056509,104660.0,104650.0,0.24192399]
[1750383609466,3.85056509,104660.0,104650.0,0.25147919]
[1750383609707,3.86011956,104660.0,104650.0,0.23587919]
[1750383609980,3.68813326,104660.0,104650.0,0.27172932]
[1750383610204,3.67857779,104660.0,104650.0,0.63372081]
[1750383610422,3.68813235,104660.0,104650.0,0.63372081]
[1750383610654,3.697687,104660.0,104650.0,0.63372081]
[1750383610873,3.68813235,104660.0,104650.0,0.63372081]
[1750383611552,3.34813235,104660.0,104650.0,0.63372081]
[1750383612001,3.34813226,104660.0,104650.0,0.63372081]
[1750383615030,0.22875959,104660.0,104650.0,0.27172932]
[1750383615237,0.03831406,104660.0,104650.0,0.63372081]
[1750383615656,0.02875959,104660.0,104650.0,0.63372081]
[1750383615898,0.03831397,104660.0,104650.0,0.63372081]
[1750383616151,0.02875959,104660.0,104650.0,0.63372081]
[1750383616808,0.03831415,104660.0,104650.0,0.63372081]
[1750383617267,0.22875959,104660.0,104650.0,0.63372081]
[1750383617488,0.23831406,104660.0,104650.0,0.63372081]
[1750383617729,0.03831406,104660.0,104650.0,0.63372081]
[1750383618172,0.04786862,104660.0,104650.0,0.63372081]
[1750383618610,0.04786935,104660.0,104650.0,0.63372081]
[1750383621042,0.2383147,104660.0,104650.0,0.63372081]
[1750383621472,0.0383147,104660.0,104650.0,0.63372081]
[1750383622162,0.0192053,104660.0,104650.0,0.63372081]
[1750383622382,0.02875968,104660.0,104650.0,0.63372081]
[1750383622836,0.0187595,104660.0,104650.0,0.63372081]
[1750383623058,0.02831388,104660.0,104650.0,0.63372081]
[1750383623275,0.0187595,104660.0,104650.0,0.63372081]
[1750383623497,0.0092053,104660.0,104650.0,0.65287081]
[1750383623731,0.0187595,104660.0,104650.0,0.63372081]
[1750383624162,0.59071292,104670.0,104660.0,0.24294382]
[1750383624387,0.40982022,104670.0,104660.0,0.76992951]
[1750383624608,0.40981949,104670.0,104660.0,0.76992951]
[1750383624824,0.40981949,104670.0,104660.0,0.77948361]
[1750383625050,0.61045003,104670.0,104660.0,0.76037531]
[1750383625175,0.61245003,104670.0,104660.0,0.76037531]
[1750383625395,0.60289693,104670.0,104660.0,0.76037549]
[1750383625888,0.60289693,104670.0,104660.0,0.76992987]
[1750383626091,0.58379009,104670.0,104660.0,0.75082102]
[1750383627369,0.58379009,104670.0,104660.0,0.76992978]
[1750383627597,0.58379009,104670.0,104660.0,0.77948398]
[1750383627890,0.39271302,104670.0,104660.0,0.76992978]
[1750383628120,0.05271247,104670.0,104660.0,0.77948388]
[1750383628347,0.06226612,104670.0,104660.0,0.77948388]
[1750383628562,0.05271247,104670.0,104660.0,0.77948388]
[1750383628781,0.05271256,104670.0,104660.0,0.77948388]
[1750383629339,0.07181949,104670.0,104660.0,0.77948388]
[1750383629971,0.06226584,104670.0,104660.0,0.77948388]
[1750383630201,0.04026368,104670.0,104660.0,0.77948388]
[1750383630413,0.03071003,104670.0,104660.0,0.77948388]
[1750383630654,0.02871003,104670.0,104660.0,0.77948388]
[1750383631101,0.02870994,104670.0,104660.0,0.41749239]
[1750383631342,0.02870994,104670.0,104660.0,0.39838391]
[1750383631343,3.5078933,104670.0,104660.0,0.39838391]
[1750383631585,0.23889413,104670.0,104660.0,0.76992969]
[1750383632047,0.22934094,104670.0,104660.0,0.7603754]
[1750383632273,0.20068054,104670.0,104660.0,0.19109497]
[1750383632497,0.20068054,104670.0,104660.0,0.35608953]
[1750383632498,0.23259054,104670.0,104660.0,0.35608953]
[1750383632720,0.20068054,104670.0,104660.0,0.56264102]
[1750383632943,0.20068054,104670.0,104660.0,0.71808102]
[1750383633190,0.20068054,104670.0,104660.0,0.35608953]
[1750383634071,0.20068054,104670.0,104660.0,0.35608962]
[1750383634302,0.23109311,104670.0,104660.0,0.35608962]
[1750383634526,0.23109311,104670.0,104660.0,0.34653497]
[1750383634747,0.23109311,104670.0,104660.0,0.35608962]
[1750383634959,0.23109311,104670.0,104660.0,0.36564418]
[1750383635200,0.23109311,104670.0,104660.0,0.35608962]
[1750383635428,0.23109311,104670.0,104660.0,0.36564418]
[1750383635949,0.23109311,104670.0,104660.0,0.35608971]
[1750383636160,0.23109311,104670.0,104660.0,0.36564436]
[1750383636378,0.23109311,104670.0,104660.0,0.39179892]
[1750383637033,0.23109311,104670.0,104660.0,0.37519892]
[1750383637251,0.23109311,104670.0,104660.0,0.74674488]
[1750383637470,0.23109311,104670.0,104660.0,0.74674479]
[1750383637914,0.23109311,104670.0,104660.0,0.74792479]
[1750383638143,0.04956996,104670.0,104660.0,0.77307908]
[1750383638362,0.04956996,104670.0,104660.0,0.77307854]
[1750383638585,0.02871049,104670.0,104660.0,0.78897799]
[1750383638779,0.03826341,104670.0,104660.0,0.78897799]
[1750383639080,0.01915629,104670.0,104660.0,0.78897799]
[1750383639297,5e-05,104670.0,104660.0,1.24624841]
[1750383640648,5e-05,104670.0,104660.0,1.27438288]
[1750383641319,5e-05,104670.0,104660.0,1.30555952]
[1750383642003,5e-05,104670.0,104660.0,1.61640037]
[1750383643128,5e-05,104670.0,104660.0,1.97839186]
[1750383643367,5e-05,104670.0,104660.0,1.61640037]
[1750383644882,5e-05,104670.0,104660.0,1.25409712]
[1750383647624,5e-05,104670.0,104660.0,0.89241739]
[1750383647846,5e-05,104670.0,104660.0,1.25409712]
[1750383648085,5e-05,104670.0,104660.0,1.09865712]
[1750383648303,5e-05,104670.0,104660.0,0.89237739]
[1750383648536,5e-05,104670.0,104660.0,1.25405712]
[1750383650551,0.22870657,104680.0,104670.0,0.61439684]
[1750383650552,3.152472,104680.0,104670.0,0.61439684]
[1750383650796,0.01910438,104680.0,104670.0,0.70967577]
[1750383651085,0.21910438,104680.0,104670.0,0.70967577]
[1750383651759,0.22110438,104680.0,104670.0,0.70967577]
[1750383652650,0.23065657,104680.0,104670.0,0.34799604]
[1750383652866,0.24020903,104680.0,104670.0,0.70967577]
[1750383653085,0.23065657,104680.0,104670.0,0.70967577]
[1750383653299,0.24020903,104680.0,104670.0,0.70967577]
[1750383653526,0.24976167,104680.0,104670.0,0.86519577]
[1750383653736,0.24976167,104680.0,104670.0,0.84969577]
[1750383653951,0.24020903,104680.0,104670.0,0.84969577]
[1750383654399,0.24976167,104680.0,104670.0,0.84969577]
[1750383654609,0.24020903,104680.0,104670.0,0.84969577]
[1750383654823,0.24976167,104680.0,104670.0,0.84969577]
[1750383655244,0.24976158,104680.0,104670.0,0.84969577]
[1750383655666,0.24020903,104680.0,104670.0,0.84969577]
[1750383656989,0.23065657,104680.0,104670.0,0.84969577]
[1750383657201,0.24020903,104680.0,104670.0,0.84969577]
[1750383657909,0.24020903,104680.0,104670.0,0.20063045]
[1750383657910,0.43126758,104680.0,104670.0,0.20063045]
[1750383658137,0.04976259,104680.0,104670.0,0.3751772]
[1750383658386,0.24082178,104680.0,104670.0,0.3751772]
[1750383658602,3.39329378,104680.0,104670.0,0.21018392]
[1750383658898,3.40588895,104680.0,104670.0,0.36558401]
[1750383659122,3.40701895,104680.0,104670.0,0.37513748]
[1750383659331,3.39746621,104680.0,104670.0,0.36558401]
[1750383659542,3.38678338,104680.0,104670.0,0.19107671]
[1750383659784,3.38791338,104680.0,104670.0,0.35623036]
[1750383660678,3.38791338,104680.0,104670.0,0.36578392]
[1750383661832,3.74004019,104680.0,104670.0,0.35623054]
[1750383662063,3.37836046,104680.0,104670.0,0.20063054]
[1750383662287,0.01910703,104670.0,104660.0,0.54419248]
[1750383662508,0.2286604,104670.0,104660.0,0.69975248]
[1750383662732,0.21910656,104670.0,104660.0,0.69975248]
[1750383662959,0.21910656,104670.0,104660.0,0.71663248]
[1750383663183,0.21910647,104670.0,104660.0,0.71663248]
[1750383663629,0.22865984,104670.0,104660.0,0.42033248]
[1750383664980,0.20955319,104670.0,104660.0,0.78201221]
[1750383665232,3.352472,104670.0,104660.0,0.79841221]
[1750383665452,3.152472,104670.0,104660.0,0.79841221]
[1750383665894,0.20955301,104670.0,104660.0,0.79841221]
[1750383666120,3.152472,104670.0,104660.0,0.79841221]
[1750383666556,0.00955301,104670.0,104660.0,0.79849221]
[1750383666765,0.20955301,104670.0,104660.0,0.79849221]
[1750383666982,0.20955301,104670.0,104660.0,0.79861544]
[1750383667414,3.352472,104670.0,104660.0,0.79861544]
[1750383667634,3.36202501,104670.0,104660.0,0.79861544]
[1750383667871,0.00955301,104670.0,104660.0,0.79861544]
[1750383668100,0.20955301,104670.0,104660.0,0.79861544]
[1750383668327,3.152472,104670.0,104660.0,0.79861544]
[1750383669207,3.16202501,104670.0,104660.0,0.79861544]
[1750383669427,0.2191062,104670.0,104660.0,0.79861544]
[1750383669832,0.20955301,104670.0,104660.0,0.79861544]
[1750383671234,3.352472,104670.0,104660.0,0.79861544]
[1750383671443,3.152472,104670.0,104660.0,0.79861544]
[1750383672760,3.152472,104670.0,104660.0,1.1604184]
[1750383673258,3.17157829,104670.0,104660.0,1.1604184]
[1750383673469,0.2191062,104670.0,104660.0,0.79861544]
[1750383673709,0.0191062,104670.0,104660.0,0.79861544]
[1750383674346,0.00955301,104670.0,104660.0,0.79861544]
[1750383674550,0.0191062,104670.0,104660.0,0.79861544]
[1750383675218,0.02865957,104670.0,104660.0,0.79861544]
[1750383675446,0.0191062,104670.0,104660.0,0.79861544]
[1750383675681,0.20955301,104670.0,104660.0,0.79861544]
[1750383675903,0.0191062,104670.0,104660.0,0.79861544]
[1750383676333,0.02865948,104670.0,104660.0,0.79861544]
[1750383677001,0.23821295,104670.0,104660.0,0.79861544]
[1750383677207,0.02865948,104670.0,104660.0,0.79861544]
[1750383677420,0.03821295,104670.0,104660.0,0.79861544]
[1750383677641,0.03821285,104670.0,104660.0,0.79861544]
[1750383678620,0.02865948,104670.0,104660.0,0.79861544]
[1750383678831,0.0191062,104670.0,104660.0,0.79861544]
[1750383679887,0.03821313,104670.0,104660.0,0.79861544]
[1750383680088,0.03821313,104670.0,104660.0,0.36560409]
[1750383680089,3.76541225,104670.0,104660.0,0.36560409]
[1750383680291,3.76662225,104670.0,104660.0,0.37515847]
[1750383680667,3.40481929,104670.0,104660.0,0.38471276]
[1750383680865,3.76662225,104670.0,104660.0,0.38479276]
[1750383681277,3.75706888,104670.0,104660.0,0.37523847]
[1750383682448,3.74076888,104670.0,104660.0,0.37523847]
[1750383683226,0.20064926,104660.0,104650.0,0.20681323]
[1750383683424,0.3809119,104660.0,104650.0,0.36566354]
[1750383683650,0.01910894,104660.0,104650.0,0.36566354]
[1750383684470,0.01910894,104660.0,104650.0,0.36966354]
[1750383684685,0.01910885,104660.0,104650.0,0.37921892]
[1750383685524,0.21975792,104660.0,104650.0,0.37921956]
[1750383685737,0.22931257,104660.0,104650.0,0.38877467]
[1750383686153,0.23886731,104660.0,104650.0,0.23333467]
[1750383686366,0.0382176,104660.0,104650.0,0.38877467]
[1750383686571,0.0382176,104660.0,104650.0,0.39832969]
[1750383686781,0.22931257,104660.0,104650.0,0.39832969]
[1750383687038,0.0382176,104660.0,104650.0,0.38877467]
[1750383687242,0.0382176,104660.0,104650.0,0.39832969]
[1750383687449,0.22931257,104660.0,104650.0,0.37921956]
[1750383687660,0.22931257,104660.0,104650.0,0.38877476]
[1750383687873,0.22931257,104660.0,104650.0,0.39832987]
[1750383688090,0.22931257,104660.0,104650.0,0.39832923]
[1750383688755,0.0382176,104660.0,104650.0,0.39832923]
[1750383689183,0.22931257,104660.0,104650.0,0.39832923]
[1750383689405,0.22931257,104660.0,104650.0,0.24288923]
[1750383689649,0.0382176,104660.0,104650.0,0.24288923]
[1750383689873,0.01910839,104660.0,104650.0,0.39844923]
[1750383690091,0.02866286,104660.0,104650.0,0.79257219]
[1750383690519,0.0095541,104660.0,104650.0,0.79257219]
[1750383690757,0.0095541,104660.0,104650.0,0.79265219]
[1750383691261,0.01910839,104660.0,104650.0,0.79265219]
[1750383693541,0.40962017,104670.0,104660.0,0.22560382]
[1750383693762,3.76272216,104670.0,104660.0,0.22560382]
[1750383695895,3.76272216,104670.0,104660.0,0.21020382]
[1750383696915,3.74361532,104670.0,104660.0,0.20064953]
[1750383699431,0.210204,104660.0,104650.0,0.24324363]
[1750383699687,0.210204,104660.0,104650.0,0.77963718]
[1750383699688,0.02866268,104660.0,104650.0,0.77963718]
[1750383699934,0.03821724,104660.0,104650.0,0.77963718]
[1750383700449,0.03821724,104660.0,104650.0,0.76355718]
[1750383700685,0.03821724,104660.0,104650.0,0.76555718]
[1750383701320,0.03821724,104660.0,104650.0,0.76755718]
[1750383701577,0.23886686,104660.0,104650.0,0.76755718]
[1750383701793,0.04777189,104660.0,104650.0,0.76755718]
[1750383702009,0.23886686,104660.0,104650.0,0.76755718]
[1750383702686,0.04777189,104660.0,104650.0,0.76755718]
[1750383702903,0.03821724,104660.0,104650.0,0.78405718]
[1750383704294,0.2388675,104660.0,104650.0,0.4126992]
[1750383704506,0.2388675,104660.0,104650.0,0.78405718]
[1750383704714,0.03821779,104660.0,104650.0,0.78405718]
[1750383705327,0.02866314,104660.0,104650.0,0.78405718]
[1750383708739,0.22931276,104660.0,104650.0,0.78405718]
[1750383708923,0.23821779,104660.0,104650.0,0.78405718]
[1750383709076,0.02866314,104660.0,104650.0,0.78405718]
[1750383712234,0.01910858,104660.0,104650.0,0.78405718]
[1750383712447,0.02866314,104660.0,104650.0,0.78405718]
[1750383717807,0.03821788,104660.0,104650.0,0.78405718]
[1750383718026,0.02866314,104660.0,104650.0,0.78405718]
[1750383718667,0.02866314,104660.0,104650.0,0.42225422]
[1750383718853,0.02866314,104660.0,104650.0,0.78405718]
[1750383720556,0.01910858,104660.0,104650.0,0.78401718]
[1750383721026,0.01910812,104660.0,104650.0,0.78401718]
[1750383721262,0.02866231,104660.0,104650.0,0.78401718]
[1750383722234,0.01910802,104660.0,104650.0,0.78401718]
[1750383722464,4.09317211,104670.0,104660.0,0.21975829]
[1750383722702,4.09317211,104670.0,104660.0,0.23729829]
[1750383724852,4.10272243,104670.0,104660.0,0.26315249]
[1750383725100,4.11227626,104670.0,104660.0,0.26315249]
[1750383725336,3.7504733,104670.0,104660.0,0.62495545]
[1750383725564,3.55939659,104670.0,104660.0,0.63450955]
[1750383725802,3.7504733,104670.0,104660.0,0.27270659]
[1750383726790,3.7504733,104670.0,104660.0,0.26315249]
[1750383728203,3.7504733,104670.0,104660.0,0.25359829]
[1750383729808,3.7504733,104670.0,104660.0,0.26315249]
[1750383731313,3.521182,104670.0,104660.0,0.63447955]
[1750383731733,3.53073501,104670.0,104660.0,0.63447955]
[1750383731941,3.50202501,104670.0,104660.0,0.63447955]
[1750383733404,3.16202501,104670.0,104660.0,0.63447955]
[1750383733611,3.17157829,104670.0,104660.0,0.63447955]
[1750383733819,3.18113176,104670.0,104660.0,0.63447955]
[1750383734032,3.17157829,104670.0,104660.0,0.65362955]
[1750383734266,3.17157829,104670.0,104660.0,0.63447955]
[1750383734499,3.16202501,104670.0,104660.0,0.63447955]
[1750383734713,3.1715782,104670.0,104660.0,0.63447955]
[1750383736787,3.17157811,104670.0,104660.0,0.63447955]
[1750383737002,3.152472,104670.0,104660.0,0.63447955]
[1750383737209,3.16202501,104670.0,104660.0,0.63447955]
[1750383737865,3.1715782,104670.0,104660.0,0.63447955]
[1750383740160,3.18113148,104670.0,104660.0,0.63447955]
[1750383740791,3.18113148,104670.0,104660.0,0.66364758]
[1750383741445,3.19068504,104670.0,104660.0,0.81904758]
[1750383741653,3.18113148,104670.0,104660.0,0.81904758]
[1750383742930,3.19068485,104670.0,104660.0,0.81904758]
[1750383745979,3.20023832,104670.0,104660.0,0.81904758]
[1750383746312,0.34,104680.0,104670.0,0.25173711]
[1750383746524,0.3495521,104680.0,104670.0,0.61475007]
[1750383746761,0.35910438,104680.0,104670.0,0.61475007]
[1750383746972,0.3495521,104680.0,104670.0,0.61475007]
[1750383747387,0.3525521,104680.0,104670.0,0.61475007]
[1750383747809,0.36210438,104680.0,104670.0,0.61475007]
[1750383748056,0.3525521,104680.0,104670.0,0.61475007]
[1750383750463,0.343,104680.0,104670.0,0.61475007]
[1750383750673,0.3525521,104680.0,104670.0,0.61475007]
[1750383751102,0.343,104680.0,104670.0,0.61475007]
[1750383751987,0.3525521,104680.0,104670.0,0.61475007]
[1750383752200,0.3495521,104680.0,104670.0,0.61475007]
[1750383754146,0.3495521,104680.0,104670.0,0.63390007]
[1750383754354,0.35910429,104680.0,104670.0,0.61475007]
[1750383754566,0.36865666,104680.0,104670.0,0.61475007]
[1750383754793,0.36865657,104680.0,104670.0,0.61475007]
[1750383756531,0.01910429,104680.0,104670.0,0.61475007]
[1750383756743,0.02865666,104680.0,104670.0,0.61475007]
[1750383757833,0.02865657,104680.0,104670.0,0.61475007]
[1750383758459,0.01910429,104680.0,104670.0,0.61475007]
[1750383759099,0.02865666,104680.0,104670.0,0.61475007]
[1750383760793,0.01910429,104680.0,104670.0,0.61475007]
[1750383761955,0.02865666,104680.0,104670.0,0.61475007]
[1750383763533,0.01910438,104680.0,104670.0,0.61475007]
[1750383763746,0.02865684,104680.0,104670.0,0.61475007]
[1750383764391,4.11435765,104690.0,104680.0,0.21016402]
[1750383764611,4.11435765,104690.0,104680.0,0.36548412]
[1750383765039,4.11435765,104690.0,104680.0,0.37503658]
[1750383765274,4.11435765,104690.0,104680.0,0.37503676]
[1750383765480,4.11435765,104690.0,104680.0,0.39023676]
[1750383765703,4.11435765,104690.0,104680.0,0.38068412]
[1750383765928,4.11435765,104690.0,104680.0,0.39023667]
[1750383766150,3.50507337,104690.0,104680.0,0.77830191]
[1750383766598,3.51462492,104690.0,104680.0,0.77830191]
[1750383767284,3.16507337,104690.0,104680.0,0.77830191]
[1750383767936,3.16507328,104690.0,104680.0,0.77830191]
[1750383768161,3.155522,104690.0,104680.0,0.77830191]
[1750383768381,0.00305,104690.0,104680.0,1.2353838]
[1750383768614,0.20305,104690.0,104680.0,1.2353838]
[1750383769924,0.20005,104690.0,104680.0,1.2353838]
[1750383770810,5e-05,104690.0,104680.0,1.2353838]
[1750383771519,0.20005,104690.0,104680.0,1.2353838]
[1750383772379,5e-05,104690.0,104680.0,1.2353838]
[1750383773052,5e-05,104690.0,104680.0,1.5316838]
[1750383773494,0.20005,104690.0,104680.0,1.5316838]
[1750383779525,0.20005,104690.0,104680.0,1.5336838]
[1750383779733,0.20005,104690.0,104680.0,1.5356838]
[1750383780703,5e-05,104690.0,104680.0,1.5356838]
[1750383782595,5e-05,104690.0,104680.0,1.55022465]
[1750383797855,5e-05,104690.0,104680.0,0.82661873]
[1750383798064,5e-05,104690.0,104680.0,1.55022465]
[1750383801930,5e-05,104690.0,104680.0,0.82661873]
[1750383802140,5e-05,104690.0,104680.0,1.55022465]
[1750383815598,3.20682881,104710.0,104700.0,0.21967414]
[1750383815786,0.01909899,104710.0,104700.0,0.7378571]
[1750383815937,0.00969104,104710.0,104700.0,0.7378571]
[1750383816143,0.01924058,104710.0,104700.0,0.7378571]
[1750383816355,0.01924058,104710.0,104700.0,0.37605414]
[1750383816572,0.02879031,104710.0,104700.0,0.37487414]
[1750383816782,0.02879031,104710.0,104700.0,0.7366771]
[1750383816980,0.05696311,104710.0,104700.0,0.7366771]
[1750383817706,0.08946311,104710.0,104700.0,0.7366771]
[1750383818318,0.08291338,104710.0,104700.0,0.7366771]
[1750383818569,0.09246301,104710.0,104700.0,0.7366771]
[1750383818791,0.02224058,104710.0,104700.0,0.7379271]
[1750383819453,0.04983611,104710.0,104700.0,0.7379271]
[1750383820506,0.05938584,104710.0,104700.0,0.7379271]
[1750383821133,0.05938584,104710.0,104700.0,0.7379272]
[1750383821359,0.05938584,104710.0,104700.0,0.74747765]
[1750383821565,0.02224058,104710.0,104700.0,0.74747765]
[1750383821987,0.01269104,104710.0,104700.0,0.74747765]
[1750383822201,0.21269104,104710.0,104700.0,0.74747765]
[1750383822424,0.02224067,104710.0,104700.0,0.74747765]
[1750383824350,0.02224067,104710.0,104700.0,0.74622765]
[1750383824769,0.01269104,104710.0,104700.0,0.74622765]
[1750383824986,0.01269104,104710.0,104700.0,0.74747765]
[1750383825857,0.02224077,104710.0,104700.0,0.74747765]
[1750383826010,0.01269104,104710.0,104700.0,0.74747765]
[1750383826215,0.02224067,104710.0,104700.0,0.74747765]
[1750383826955,0.02224077,104710.0,104700.0,0.74747765]
[1750383827167,0.03179068,104710.0,104700.0,0.37612424]
[1750383827317,0.03179068,104710.0,104700.0,0.7379272]
[1750383827533,0.03179077,104710.0,104700.0,0.73792729]
[1750383827693,0.02224077,104710.0,104700.0,0.74747784]
[1750383827891,0.02224077,104710.0,104700.0,0.75702829]
[1750383828104,0.01269104,104710.0,104700.0,0.75702829]
[1750383828740,0.02224077,104710.0,104700.0,0.75702829]
[1750383829346,0.01269104,104710.0,104700.0,0.75702829]
[1750383829544,0.02224077,104710.0,104700.0,0.75702829]
[1750383830974,0.02224067,104710.0,104700.0,0.75702829]
[1750383831848,3.79235114,104720.0,104710.0,0.19100372]
[1750383832067,3.80128803,104720.0,104710.0,0.19100372]
[1750383834367,3.80228803,104720.0,104710.0,0.19100372]
[1750383834686,3.80228745,104720.0,104710.0,0.19100372]
[1750383836165,3.44048449,104720.0,104710.0,0.19100372]
[1750383836368,3.80228745,104720.0,104710.0,0.19100372]
[1750383836674,3.80109745,104720.0,104710.0,0.19100372]
[1750383837422,3.79216114,104720.0,104710.0,0.19100372]
[1750383837792,3.80109719,104720.0,104710.0,0.19100372]
[1750383837998,3.80229719,104720.0,104710.0,0.19100372]
[1750383839485,0.2101039,104710.0,104700.0,0.19102196]
[1750383839710,0.41750223,104710.0,104700.0,0.36532378]
[1750383839909,0.40120223,104710.0,104700.0,0.20057296]
[1750383840201,0.41075241,104710.0,104700.0,0.21967469]
[1750383840439,0.40120223,104710.0,104700.0,0.21967469]
[1750383840629,0.40120223,104710.0,104700.0,0.22922542]
[1750383840872,0.41075241,104710.0,104700.0,0.21967469]
[1750383841110,0.41075241,104710.0,104700.0,0.19102196]
[1750383841111,0.58245677,104710.0,104700.0,0.19102196]
[1750383841326,0.61485677,104710.0,104700.0,0.20057296]
[1750383841545,0.61485677,104710.0,104700.0,0.19102196]
[1750383841769,0.41430287,104710.0,104700.0,0.21967487]
[1750383842007,0.39770287,104710.0,104700.0,0.21967487]
[1750383842230,0.40100168,104710.0,104700.0,0.22922551]
[1750383842459,0.40100168,104710.0,104700.0,0.21967487]
[1750383842460,0.41055186,104710.0,104700.0,0.21967487]
[1750383842678,0.40100168,104710.0,104700.0,0.21967487]
[1750383842920,0.40100168,104710.0,104700.0,0.23877624]
[1750383843128,0.41055177,104710.0,104700.0,0.2292256]
[1750383843342,0.41055177,104710.0,104700.0,0.21967487]
[1750383843554,0.40100168,104710.0,104700.0,0.2292256]
[1750383844229,0.41055186,104710.0,104700.0,0.2292256]
[1750383844433,0.40100168,104710.0,104700.0,0.2292256]
[1750383844641,0.41055186,104710.0,104700.0,0.21967487]
[1750383844852,0.41055186,104710.0,104700.0,0.2292256]
[1750383845192,0.40100168,104710.0,104700.0,0.2292256]
[1750383845389,0.41055177,104710.0,104700.0,0.2292256]
[1750383845798,0.40100241,104710.0,104700.0,0.21967487]
[1750383846004,0.40100241,104710.0,104700.0,0.2292256]
[1750383846208,0.39145232,104710.0,104700.0,0.2292256]
[1750383846410,0.39145223,104710.0,104700.0,0.23877615]
[1750383846610,0.39145214,104710.0,104700.0,0.22922506]
[1750383846837,0.40100205,104710.0,104700.0,0.22922506]
[1750383847030,0.59139537,104710.0,104700.0,0.20057296]
[1750383847257,0.40994165,104710.0,104700.0,0.21012378]
[1750383847603,0.40100242,104710.0,104700.0,0.21967442]
[1750383847804,0.40100242,104710.0,104700.0,0.21012378]
[1750383847994,0.40100242,104710.0,104700.0,0.21967451]
[1750383848225,0.40100242,104710.0,104700.0,0.22922515]
[1750383848854,0.40100242,104710.0,104700.0,0.2387757]
[1750383849040,0.40100242,104710.0,104700.0,0.22922515]
[1750383849273,0.4105526,104710.0,104700.0,0.21012378]
[1750383849520,0.41055251,104710.0,104700.0,0.21967451]
[1750383850839,0.5920065,104710.0,104700.0,0.21012378]
[1750383851197,0.60155668,104710.0,104700.0,0.21012378]
[1750383851907,0.44067367,104710.0,104700.0,0.21967451]
[1750383852093,0.44067367,104710.0,104700.0,0.20057296]
[1750383852302,0.43112385,104710.0,104700.0,0.21012387]
[1750383852518,0.43112385,104710.0,104700.0,0.20057296]
[1750383852735,0.43112385,104710.0,104700.0,0.21012387]
[1750383852934,0.43112385,104710.0,104700.0,0.22922542]
[1750383853278,0.24012013,104710.0,104700.0,0.22922542]
[1750383853475,0.23056995,104710.0,104700.0,0.22922542]
[1750383854002,0.42157367,104710.0,104700.0,0.21967469]
[1750383854421,0.42157367,104710.0,104700.0,0.23497469]
[1750383854629,0.42157367,104710.0,104700.0,0.24452542]
[1750383854850,0.23056995,104710.0,104700.0,0.24452542]
[1750383855424,0.42157367,104710.0,104700.0,0.23497469]
[1750383855667,0.42157367,104710.0,104700.0,0.21967469]
[1750383855855,0.42157367,104710.0,104700.0,0.21012387]
[1750383856319,0.43051323,104710.0,104700.0,0.19102196]
[1750383856536,0.43168323,104710.0,104700.0,0.21012387]
[1750383856742,0.43168323,104710.0,104700.0,0.21967469]
[1750383856955,0.42157367,104710.0,104700.0,0.21967469]
[1750383857412,0.59039632,104710.0,104700.0,0.22922542]
[1750383857629,0.02803918,104710.0,104700.0,0.22922524]
[1750383857850,0.02803918,104710.0,104700.0,0.63167865]
[1750383857851,0.03758854,104710.0,104700.0,0.63167865]
[1750383858065,0.03758845,104710.0,104700.0,0.63167865]
[1750383858500,0.02803863,104710.0,104700.0,0.63167865]
[1750383858712,0.20893964,104710.0,104700.0,0.63280865]
[1750383858928,0.00893964,104710.0,104700.0,0.99461161]
[1750383859149,0.58736818,104720.0,104700.0,0.61370674]
[1750383859387,0.0190989,104710.0,104700.0,0.61370674]
[1750383859606,0.00954936,104710.0,104700.0,0.61370674]
[1750383859814,0.0190989,104710.0,104700.0,0.61370674]
[1750383860422,3.74591423,104720.0,104710.0,0.20055372]
[1750383860679,3.75485467,104720.0,104710.0,0.21010363]
[1750383860895,3.94584015,104720.0,104710.0,0.19100372]
[1750383861109,3.94584061,104720.0,104710.0,0.19100372]
[1750383861326,3.94701061,104720.0,104710.0,0.19100372]
[1750383861545,3.94701061,104720.0,104710.0,0.2005539]
[1750383861753,3.94701061,104720.0,104710.0,0.21010399]
[1750383862003,3.96989788,104720.0,104710.0,0.21010399]
[1750383863034,3.96989788,104720.0,104710.0,0.21965399]
[1750383863288,3.7789124,104720.0,104710.0,0.22065399]
[1750383863490,3.75602513,104720.0,104710.0,0.21110399]
[1750383863706,3.94701061,104720.0,104710.0,0.2015539]
[1750383864130,3.3846729,104720.0,104710.0,0.2111039]
[1750383864349,3.74530562,104720.0,104710.0,0.2111039]
[1750383865076,3.74530562,104720.0,104710.0,0.21110381]
[1750383865320,3.74530562,104720.0,104710.0,0.2111039]
[1750383866057,3.74530525,104720.0,104710.0,0.22065381]
[1750383866313,3.74530544,104720.0,104710.0,0.23020363]
[1750383866570,3.74530544,104720.0,104710.0,0.22065381]
[1750383867008,3.73636505,104720.0,104710.0,0.22065381]
[1750383867227,3.74530477,104720.0,104710.0,0.23020363]
[1750383867436,3.75485386,104720.0,104710.0,0.23705381]
[1750383867910,3.75485386,104720.0,104710.0,0.2275039]
[1750383868149,3.76440313,104720.0,104710.0,0.2275039]
[1750383868406,3.3930509,104720.0,104710.0,0.2275039]
[1750383868643,3.76440304,104720.0,104710.0,0.2275039]